Cogmind - Beta 16 --- EXPLORER MODE // 2025.12.11 @ 11:44:36 Player: K.K.Y. Result: Destroyed by E0-64C(R) with Subdweller Laser Performance ------------- Evolutions (0) 0 Regions Visited (3) 600 Robots Destroyed (33) 165 Value Destroyed (443) 443 Prototype IDs (0) 0 Alien Tech Used (0) 0 Bonus (0) 0 TOTAL SCORE: 1208 Bonus ------- None Cogmind --------- Core Integrity 0/250 Matter 250/300 Energy 167/170 System Corruption 0% Temperature Cool (6) Movement Flying (200) Ox2 Location -10/Subcaves Parts ------- > --- POWER (1) -------- Makeshift Power Source > --- PROPULSION (3) --- Flight Unit > --- UTILITY (2) ------ Small Storage Unit Weight Redist. System > --- WEAPON (2) ------- Battle Cannon > --- INVENTORY (8) ---- Flight Unit Flight Unit Flight Unit High-capacity Storage Unit Structural Scanner Improved Terrain Scanner Subdweller Machine Gun Peak State ------------ > --- POWER ------------ Makeshift Power Source > --- PROPULSION ------- Flight Unit > --- UTILITY ---------- Small Storage Unit Weight Redist. System > --- WEAPON ----------- Battle Cannon > --- INVENTORY -------- Flight Unit Flight Unit Flight Unit High-capacity Storage Unit Structural Scanner Improved Terrain Scanner Subdweller Machine Gun [Rating: 11] Favorites ----------- Power Light Ion Engine Engine Light Ion Engine Propulsion Flight Unit Wheel Wheel Flight Unit Flight Unit Utility Weight Redist. System Device Weight Redist. System Storage Small Storage Unit Weapon Medium Laser Energy Gun Medium Laser Ballistic Gun Light Assault Rifle Ballistic Cannon Battle Cannon Special Weapon Mining Laser Build | -11 -10 -10 -10 ------- Run | Yrd Mat Min Sub Slots Evolved 1 | . 1 . . Power . | . . . . Propulsion 1 | . 1 . . Utility . | . . . . Weapon . | . . . . Parts Attached 18 | 4 7 4 3 Power 2 | 1 . . 1 Engine 2 | 1 . . 1 Core . | . . . . Reactor . | . . . . Propulsion 8 | 2 3 3 . Treads . | . . . . Leg . | . . . . Wheel 2 | 2 . . . Hover . | . . . . Flight 6 | . 3 3 . Utility 3 | . 2 1 . Device 2 | . 2 . . Storage 1 | . . 1 . Processor . | . . . . Hackware . | . . . . Protection . | . . . . Artifact . | . . . . Weapon 5 | 1 2 . 2 Energy Gun 2 | 1 1 . . Energy Cannon . | . . . . Ballistic Gun 1 | . 1 . . Ballistic Cannon 1 | . . . 1 Launcher . | . . . . Special Weapon 1 | . . . 1 Impact Weapon . | . . . . Slashing Weapon . | . . . . Piercing Weapon . | . . . . Special Melee Weapon . | . . . . Unidentified Prototypes . | . . . . Parts Lost 6 | . . . 6 Power 1 | . . . 1 Propulsion 3 | . . . 3 Utility . | . . . . Weapon 2 | . . . 2 Highest Loss Streak 5 | . . . 5 To Critical Strikes . | . . . . Average Backups 5 | 2 4 6 7 Power . | . . . . Propulsion 2 | . 1 3 3 Utility 2 | . 1 2 3 Weapon . | . 1 1 . Tool/Special . | . . . . Unused Backups 4 | . . 1 3 Power . | . . . . Propulsion 2 | . . 1 1 Utility 2 | . . . 2 Weapon . | . . . . Tool/Special . | . . . . Average Slot Usage (%) 83 | . 72 100 88 Engine 11 | . 12 12 8 Wheel 10 | . 20 . . Flight 20 | . 6 37 32 Device 13 | . 11 16 12 Storage 4 | . . 8 12 Energy Gun 19 | . 19 25 13 Special Weapon 1 | . . . 6 Peak Build Rating 11 | 4 9 10 11 Average Rating 7 | 1 6 9 9 On Entrance 5 | . 4 9 10 Avg Prop Armor Cover (%) . | . . . . Naked Turns . | . . . . Heaviest Build 12 | 5 8 12 12 Greatest Support 26 | 20 26 18 18 Greatest Overweight (x) 1 | . . . 1 Average Overweight (x) . | . . . . Largest Inventory Capacity 8 | 5 5 8 8 Average Capacity 6 | 5 5 7 8 Most Carried 8 | 5 5 8 8 Average Carried 5 | 2 4 6 7 Final Capacity 8 | 5 5 8 8 Final Carried 8 | 2 5 8 7 Class Distribution -------------------- 62% | Hacker-Mutant 37% | Scavenger-Mutant Dominant Class ---------------- Hacker-Mutant | -10/Materials Scavenger-Mutant | -10/Mines Scavenger-Mutant | -10/Subcaves Resources | -11 -10 -10 -10 ----------- Run | Yrd Mat Min Sub Matter Collected 416 | 210 111 40 55 Remotely . | . . . . Salvage Created 1182 | 157 521 396 108 Parts 59 | 10 27 18 4 Haulers Intercepted 2 | . 2 . . Recyclers Shooed 3 | . 1 2 . Parts Field Recycled . | . . . . Retrieved Matter . | . . . . Parts Self-Destructed . | . . . . Prevented . | . . . . Parts Restored . | . . . . Kills | -11 -10 -10 -10 ------- Run | Yrd Mat Min Sub Combat Hostiles Destroyed 17 | . 8 6 3 Guns 15 | . 7 6 2 Cannons 1 | . . . 1 Classes Destroyed 7 | 2 4 . 1 Tunneler 4 | 4 . . . Hauler 2 | . 2 . . Recycler 7 | 1 2 4 . Watcher 3 | . 3 . . Swarmer 12 | . 6 6 . Grunt 2 | . 2 . . Subdweller 3 | . . . 3 Best Kill Streak 5 | 3 5 4 2 Combat Bots Only 4 | . 4 2 2 Max Kills in Single Turn 2 | 1 2 1 1 Gunslinging 1 | . 1 . . Exploded . | . . . . Melee . | . . . . Uniques/NPCs Destroyed . | . . . . Combat | -11 -10 -10 -10 -------- Run | Yrd Mat Min Sub Hostile Shots Fired 83 | . 24 10 49 Missed 24 | . 7 5 12 Hits 59 | . 17 5 37 Projectile 59 | . 17 5 37 Critical Strikes 1 | . . . 1 Damage Taken 649 | . 118 22 509 Core 261 | . 46 4 211 Absorbed by Shields . | . . . . Ignored by Resistances 391 | . 76 16 299 Core Remaining (%) 100 | 100 . . . Volleys Fired 93 | 14 34 18 27 Largest 2 | 1 2 2 2 Hottest 150 | 50 100 100 150 Shots Fired 143 | 14 53 36 40 Gun 130 | 14 53 36 27 Cannon 6 | . . . 6 Launcher . | . . . . Special 7 | . . . 7 Kinetic 7 | . 1 . 6 Thermal 136 | 14 52 36 34 Explosive . | . . . . Electromagnetic . | . . . . Robot Hit Streak 32 | 14 32 20 21 Robot Miss Streak 2 | . 2 1 1 Penetration Max . | . . . . Secondary Targets 3 | . 1 1 1 Max Gunslinging Chain 1 | . 1 1 1 Shots Hit Robots 115 | 14 45 28 28 Core Hits 49 | 6 21 14 8 Critical Kills . | . . . . Critical Parts Destroyed . | . . . . Critical Strikes 9 | . 4 1 4 Burn 9 | . 4 1 4 Melee Attacks . | . . . . Impact . | . . . . Slashing . | . . . . Piercing . | . . . . Sneak Attacks . | . . . . Combat Hostiles . | . . . . Follow-up Attacks . | . . . . Damage Inflicted 1484 | 176 562 364 382 Guns 1380 | 176 562 364 278 Cannons 80 | . . . 80 Explosions . | . . . . Melee . | . . . . Ramming . | . . . . Kinetic 80 | . . . 80 Thermal 1404 | 176 562 364 302 Explosive . | . . . . Electromagnetic . | . . . . Impact . | . . . . Slashing . | . . . . Piercing . | . . . . Highest Corruption . | . . . . Average Corruption . | . . . . Corruption Purged . | . . . . Corruption Blocked . | . . . . Overload Shots . | . . . . Overflow Damage . | . . . . Projectiles . | . . . . Explosions . | . . . . Melee . | . . . . Knockbacks 1 | . . . 1 Impact . | . . . . Kinetic 1 | . . . 1 Secondary . | . . . . Self-Inflicted Damage . | . . . . Shots . | . . . . Rammed . | . . . . Targets Rammed . | . . . . Kicked . | . . . . Crushed . | . . . . Highest Temperature 379 | 25 246 379 6 Average Temperature 92 | 25 82 111 2 Received Heat Transfer 228 | . 87 . 141 Effects 1 | . . 1 . Shutdowns 1 | . . 1 . Siege Activations . | . . . . Martial Activations . | . . . . Shielding Activations . | . . . . Robots Disrupted . | . . . . Combat Hostiles . | . . . . Robots Corrupted . | . . . . Combat Hostiles . | . . . . Parts Fried . | . . . . Impact Corruptions . | . . . . Robots Melted 1 | . 1 . . Combat Hostiles 1 | . 1 . . Parts Melted 11 | 1 6 4 . Heat Transferred 4786 | 518 1961 1147 1160 Parts Sabotaged . | . . . . Parts Stolen . | . . . . Parts Stripped . | . . . . Power Chain Reactions . | . . . . Alert | -11 -10 -10 -10 ------- Run | Yrd Mat Min Sub Maximum Alert Level . | . . . . Low Security (%) 100 | 100 100 100 . Level 1 . | . . . . Level 2 . | . . . . Level 3 . | . . . . Level 4 . | . . . . Level 5 . | . . . . High Security . | . . . . Max Security . | . . . . Peak Influence 75 | 10 75 65 . Initial 11 | . . 11 . Average 19 | 2 20 21 . Influence Increases 465 | 25 255 185 . Destroy 0b10 Robot/C 280 | . 160 120 . Destroy 0b10 Robot/NC 80 | 25 35 20 . Destroy Leader 80 | . 50 30 . Successful Hack 10 | . 10 . . Lose Combat Pursuer 15 | . . 15 . Influence Decreases 465 | 25 215 220 5 Entered New Map 33 | . . 29 4 Time Decay 432 | 25 215 191 1 Squads Dispatched . | . . . . Investigation . | . . . . Extermination . | . . . . Reinforcement . | . . . . Assault . | . . . . Garrison . | . . . . Intercept . | . . . . Searches Triggered . | . . . . Construction Impeded . | . . . . Haulers Reinforced . | . . . . Active Scanning Responses . | . . . . Cargo Convoy Interrupts . | . . . . Stealth | -11 -10 -10 -10 --------- Run | Yrd Mat Min Sub Distress Signals 1 | . 1 . . Communications Jammed . | . . . . Distress Signals . | . . . . Times Spotted 25 | . 12 7 6 Peak Tracking Total 4 | . 4 2 4 Tactical Retreats 2 | . . 1 1 Traps | -11 -10 -10 -10 ------- Run | Yrd Mat Min Sub Traps Triggered . | . . . . Indirectly . | . . . . Trap Hack Attempts . | . . . . Triggered . | . . . . Disarmed . | . . . . Reprogrammed . | . . . . Reused . | . . . . Traps Extracted . | . . . . Installed . | . . . . Triggered . | . . . . Machines | -11 -10 -10 -10 ---------- Run | Yrd Mat Min Sub Machines Disabled . | . . . . Max in Single Turn . | . . . . Machines Repaired . | . . . . Machines Dismantled . | . . . . Machines Sabotaged . | . . . . Overloaded Fab Kills . | . . . . Hacking | -11 -10 -10 -10 --------- Run | Yrd Mat Min Sub Machines Accessed 2 | . 2 . . Terminals 2 | . 2 . . Fabricators . | . . . . Repair Stations . | . . . . Recycling Units . | . . . . Scanalyzers . | . . . . Garrison Access . | . . . . Total Hacks 3 | . 3 . . Successful 2 | . 2 . . Failed 1 | . 1 . . Catastrophic . | . . . . Database Lockouts . | . . . . Manual 1 | . 1 . . Terminals 3 | . 3 . . Fabricators . | . . . . Repair Stations . | . . . . Recycling Units . | . . . . Scanalyzers . | . . . . Garrison Access . | . . . . Terminal Hacks 1 | . 1 . . Robot Analysis 1 | . 1 . . Fabricator Hacks . | . . . . Repair Station Hacks . | . . . . Recycling Unit Hacks . | . . . . Scanalyzer . | . . . . Garrison Access Hacks . | . . . . Unauthorized Hacks 1 | . 1 . . Terminals 1 | . 1 . . Botnet 1 | . 1 . . Fabricators . | . . . . Repair Stations . | . . . . Recycling Units . | . . . . Scanalyzers . | . . . . Garrison Access . | . . . . Data Cores Recovered . | . . . . Used . | . . . . Hacking Detections 2 | . 2 . . Full Trace Events . | . . . . Feedback Events . | . . . . Feedback Blocked . | . . . . Robot Schematics Acquired . | . . . . Robots Built . | . . . . Authchips . | . . . . Time . | . . . . Total Robot Build Rating . | . . . . Part Schematics Acquired . | . . . . Parts Built . | . . . . Authchips . | . . . . Time . | . . . . Total Part Build Rating . | . . . . Part Studies Acquired . | . . . . Parts Repaired . | . . . . Time . | . . . . Parts Recycled . | . . . . Recycled Matter . | . . . . Retrieved Matter . | . . . . Retrieved Components . | . . . . Parts Scanalyzed . | . . . . Part Schematics Acquired . | . . . . Parts Damaged . | . . . . Bothacking | -11 -10 -10 -10 ------------ Run | Yrd Mat Min Sub Used RIF Installer . | . . . . Robots Hacked . | . . . . Non-combat . | . . . . Combat . | . . . . Robot Hacks Applied . | . . . . Relay Couplers Released . | . . . . Fabnet Peak Effective % . | . . . . Robots Rewired . | . . . . Allies Hacked . | . . . . Hacks Repelled . | . . . . Allies | -11 -10 -10 -10 -------- Run | Yrd Mat Min Sub Total Allies 2 | . . 2 . Largest Group 2 | . . 2 . Highest-Rated Group 40 | . . 40 . Highest-Rated Ally 31 | . . 31 . Total Orders . | . . . . Ally Attacks . | . . . . Total Damage . | . . . . Kills . | . . . . Allies Corrupted . | . . . . Allies Melted . | . . . . Intel | -11 -10 -10 -10 ------- Run | Yrd Mat Min Sub Active Infowar (turns) 555 | . 455 100 . Structural 555 | . 455 100 . Robot Analysis Total 1 | . 1 . . Derelict Logs Recovered 3 | . . . 3 Drone Launches . | . . . . Drone Recoveries . | . . . . Exploration | -11 -10 -10 -10 ------------- Run | Yrd Mat Min Sub Turns Passed 1260 | 84 598 335 243 Spaces Moved 1773 | 60 735 674 304 Core 54 | 54 . . . Treads . | . . . . Legs . | . . . . Wheels 499 | 6 493 . . Hover . | . . . . Flight 1220 | . 242 674 304 Fastest Speed 34 | 50 34 34 34 Average Speed 47 | 53 64 34 35 Slowest Speed 120 | 80 80 34 120 Overloaded Moves . | . . . . Propulsion Burnouts . | . . . . Robots Hopped 3 | . . 3 . Potential Cave-ins . | . . . . Cave-ins Triggered . | . . . . Exploration Rate (%) 54 | 4 98 97 17 Regions Visited 3 Branch Regions 2 Pre-discovered Areas 2 | . . 1 1 Known Exits Taken 3 | 1 1 1 . Unknown Exits Taken . | . . . . Scrap Searched 9 | . . 1 8 Spaces Dug . | . . . . Terrain Destroyed . | . . . . Melee . | . . . . Projectile . | . . . . AOE . | . . . . Terrain Rammed . | . . . . Walls Destroyed . | . . . . Machines Disabled . | . . . . Actions | -11 -10 -10 -10 --------- Run | Yrd Mat Min Sub Total 2023 | 97 802 741 383 Wait 112 | 14 16 43 39 Move 1764 | 59 734 667 304 Hop 3 | . . 3 . Pick Up 17 | 6 6 3 2 Fast Attach 6 | . 4 1 1 Attach 10 | 4 3 . 3 Detach . | . . . . Swap 10 | . 1 3 6 Drop 8 | . 4 3 1 Fire 93 | 14 34 18 27 Melee . | . . . . Ram . | . . . . Kick . | . . . . Crush . | . . . . Escape Stasis . | . . . . Rewire . | . . . . Trap . | . . . . Miscellaneous . | . . . . Route ------- -11/Scrapyard -10/Materials (discovered 6 exits: *Mat x3 / *Min x2 / *Sub) -10/Mines (discovered 3 exits: *Mat x2 / *Sub) -10/Subcaves (discovered 1 exit: *Mat) History --------- Turn | Location | Event 7 | -11/Scrapyard | Identified exit to Materials 7 | -11/Scrapyard | Discovered exit to Materials (range 16) 85 | -11/Scrapyard | Entered Materials 85 | -10/Materials | Evolved 1 slot: Propulsion x1 97 | -10/Materials | Identified exit to Mines 97 | -10/Materials | Discovered exit to Mines (range 5) 153 | -10/Materials | Identified exit to Materials 153 | -10/Materials | Discovered exit to Materials (range 8) 175 | -10/Materials | Discovered exit to Mines (range 16) 309 | -10/Materials | Build established: Hacker-Mutant 502 | -10/Materials | Discovered exit to Materials (range 12) 526 | -10/Materials | Identified exit to Subcaves 526 | -10/Materials | Discovered exit to Subcaves (range 16) 621 | -10/Materials | Discovered exit to Materials (range 15) 683 | -10/Materials | Entered Mines 684 | -10/Mines | Learned location of Storage (-9) 719 | -10/Mines | Met a Derelict bent on vengeance 742 | -10/Mines | Discovered exit to Materials (range 9) 946 | -10/Mines | Discovered exit to Materials (range 10) 1016 | -10/Mines | Discovered exit to Subcaves (range 6) 1018 | -10/Mines | Entered Subcaves 1020 | -10/Subcaves | Shifting Twisted Machinery released Mak. Leg 1020 | -10/Subcaves | Shifting Twisted Machinery released Mak. Thermal Plating 1037 | -10/Subcaves | Learned Materials trap positions 1074 | -10/Subcaves | A swath of the cavern ceiling suddenly collapsed 1112 | -10/Subcaves | Build established: Scavenger-Mutant 1165 | -10/Subcaves | Shifting Twisted Machinery released Flamer 1166 | -10/Subcaves | Shifting Twisted Machinery released Mak. Thermal Plating 1180 | -10/Subcaves | Core integrity fell below 50% 1210 | -10/Subcaves | Identified exit to Materials 1210 | -10/Subcaves | Discovered exit to Materials (range 11) 1232 | -10/Subcaves | Learned location of Mines (-10) 1235 | -10/Subcaves | Lost 5 parts (1p2n2w) 1240 | -10/Subcaves | Disturbed a concealed Subdweller 1247 | -10/Subcaves | Core integrity fell below 20% 1261 | -10/Subcaves | Destroyed by E0-64C(R) with Subdweller Laser Last Messages --------------- Twisted Machinery. 01241_ Searching scrap... 01241_ Found Mak. Power Source. 01241_ Found Sub. Machine Gun. 01241_ Found 39 Matter. 01242_ Acquired Mak. Power Source. 01243_ Acquired 15 matter. 01243_ Flight Unit destroyed. 01243_ Acquired Sub. Machine Gun. 01244_ Searching scrap... 01244_ Found Enh. Flamer. 01244_ Found Sub. Power Source. 01244_ Found 67 Matter. 01246_ Searching scrap... 01246_ Found Battle Cannon. 01246_ Found 52 Matter. 01248_ Acquired Battle Cannon. 01249_ Dropped Mining Laser. 01255_ FZ-G9I(R) destroyed. 01257_ E0-64C(R) knocked back. Map ----- +----------------------------------------------------+ | ?????????????????????????????????????????????????? | | ?????????????????????????????????????????????????? | | ?????????????????????????????????????????????????? | | ?????????????????????????????????????????????????? | | ?????????????????????????????????????????????????? | | ?????????????????????????????????????????????????? | | ?????????????????????????????????????????????????? | | ?????????????????????????????????????????????????? | | ?????????????????????????????????????????????????? | | ?????????????????????????????????????????????????? | | ?????????????????????????????????????????????????? | | ?????????????????????????????????????????????????? | | ?????????????????????????????????????????????????? | | ?????????????????????????????????????????????????? | | ?????????????????????????????????????????????????? | | ?????????????????????????????????????????????????? | | ?????????????????????????????????????????????????? | | ?????????????????????????????????????????????????? | | ?????????????????????????????????????????????????? | | ?????????????????????????????????????????????????? | | ?????????????????????????????????????????????????? | | ?????????????????????????????????????????????????? | | ?????????????????????????????????????????????????? | | ????????????????????##############???????????????? | | ???????????????????##$ | % < < <##??????????????? | | ???????????????????# %@ <%<< #??????????????? | | ???????????????????# $* & <<<< <#??????????????? | | ???????????????????#< %%& <<&"#??????????????? | | ???????????????????# < =&$